[Event "Early-Titled-Tuesday-Blitz-March-19-2024"]
[Site "Chess.com"]
[Date "2024.03.19"]
[Round "10"]
[White "FARIZA2018"]
[Black "Roedor"]
[Result "1-0"]
[WhiteElo "2531"]
[BlackElo "2309"]
[TimeControl "180+1"]
[EndTime "9:55:24 PDT"]
[Termination "FARIZA2018 won by resignation"]

1. e4 {[%clk 0:03:00.9]} 1... e5 {[%clk 0:02:52.1]} 2. Nf3 {[%clk 0:03:01]} 2...
Nc6 {[%clk 0:02:51.7]} 3. Bb5 {[%clk 0:03:01]} 3... Nf6 {[%clk 0:02:51.4]} 4. d3
{[%clk 0:02:59.7]} 4... Bc5 {[%clk 0:02:50.1]} 5. O-O {[%clk 0:02:59.7]} 5...
Nd4 {[%clk 0:02:50]} 6. Nxd4 {[%clk 0:02:58.8]} 6... Bxd4 {[%clk 0:02:50.9]} 7.
c3 {[%clk 0:02:58.7]} 7... Bb6 {[%clk 0:02:51.2]} 8. Nd2 {[%clk 0:02:57.7]} 8...
O-O {[%clk 0:02:50.4]} 9. Nf3 {[%clk 0:02:57.8]} 9... c6 {[%clk 0:02:48.5]} 10.
Ba4 {[%clk 0:02:57.9]} 10... Re8 {[%clk 0:02:42.8]} 11. Re1 {[%clk 0:02:56.2]}
11... h6 {[%clk 0:02:42.3]} 12. Be3 {[%clk 0:02:56.2]} 12... d5 {[%clk
0:02:39.8]} 13. exd5 {[%clk 0:02:54.8]} 13... Nxd5 {[%clk 0:02:39.7]} 14. Bxb6
{[%clk 0:02:54.5]} 14... axb6 {[%clk 0:02:40.6]} 15. Bc2 {[%clk 0:02:35.6]}
15... Bg4 {[%clk 0:02:38.6]} 16. h3 {[%clk 0:02:35]} 16... Bh5 {[%clk
0:02:38.6]} 17. g4 {[%clk 0:02:32.4]} 17... Bg6 {[%clk 0:02:38]} 18. Nxe5 {[%clk
0:02:32.2]} 18... Nf4 {[%clk 0:02:36.9]} 19. Qf3 {[%clk 0:02:29.7]} 19... Qg5
{[%clk 0:02:29.5]} 20. Nxg6 {[%clk 0:02:27.9]} 20... Nxg6 {[%clk 0:02:29.6]} 21.
d4 {[%clk 0:02:23.5]} 21... Nh4 {[%clk 0:02:23.9]} 22. Qd3 {[%clk 0:02:20.1]}
22... g6 {[%clk 0:02:15.4]} 23. a3 {[%clk 0:01:59.4]} 23... Qf4 {[%clk
0:02:13.4]} 24. Re3 {[%clk 0:01:27.6]} 24... Rxe3 {[%clk 0:02:06.3]} 25. Qxe3
{[%clk 0:01:27.7]} 25... Nf3+ {[%clk 0:01:59.9]} 26. Kg2 {[%clk 0:01:27.5]}
26... Nh4+ {[%clk 0:01:45.6]} 27. Kh1 {[%clk 0:01:27.5]} 27... Qd6 {[%clk
0:01:42]} 28. Re1 {[%clk 0:01:22.9]} 28... Qf6 {[%clk 0:00:46.2]} 29. Qg3 {[%clk
0:01:13.4]} 29... Ra5 {[%clk 0:00:42.3]} 30. Re8+ {[%clk 0:01:01.4]} 30... Kg7
{[%clk 0:00:41.6]} 31. Be4 {[%clk 0:00:50]} 31... h5 {[%clk 0:00:22.5]} 32. Re5
{[%clk 0:00:33.9]} 32... hxg4 {[%clk 0:00:09.5]} 33. hxg4 {[%clk 0:00:33.8]}
33... Ra8 {[%clk 0:00:07.8]} 34. g5 {[%clk 0:00:33.4]} 34... Qd6 {[%clk
0:00:06.6]} 35. Kg1 {[%clk 0:00:30.6]} 35... Rh8 {[%clk 0:00:06.7]} 36. b4
{[%clk 0:00:21.3]} 36... c5 {[%clk 0:00:06.5]} 37. bxc5 {[%clk 0:00:21.2]} 37...
bxc5 {[%clk 0:00:07.4]} 38. Rxc5 {[%clk 0:00:20.7]} 38... Qb6 {[%clk 0:00:07.2]}
39. Qe5+ {[%clk 0:00:20.2]} 39... Kg8 {[%clk 0:00:07.2]} 40. Rc8+ {[%clk
0:00:20.1]} 1-0

[Event "Early-Titled-Tuesday-Blitz-March-19-2024"]
[Site "Chess.com"]
[Date "2024.03.19"]
[Round "10"]
[White "tusplingher"]
[Black "Let_it_be_1"]
[Result "0-1"]
[WhiteElo "2483"]
[BlackElo "2610"]
[TimeControl "180+1"]
[EndTime "9:55:25 PDT"]
[Termination "Let_it_be_1 won by checkmate"]

1. e4 {[%clk 0:03:00.9]} 1... e6 {[%clk 0:02:59.8]} 2. d4 {[%clk 0:02:59.6]}
2... d5 {[%clk 0:03:00]} 3. Nc3 {[%clk 0:02:59]} 3... Nf6 {[%clk 0:03:00.1]} 4.
Bg5 {[%clk 0:02:57.5]} 4... dxe4 {[%clk 0:03:00]} 5. Nxe4 {[%clk 0:02:49.5]}
5... Be7 {[%clk 0:03:00.2]} 6. Bxf6 {[%clk 0:02:46.2]} 6... Bxf6 {[%clk
0:03:00.4]} 7. Nf3 {[%clk 0:02:45]} 7... O-O {[%clk 0:03:00.3]} 8. c3 {[%clk
0:02:39.9]} 8... Nd7 {[%clk 0:03:00]} 9. Bd3 {[%clk 0:02:38.5]} 9... e5 {[%clk
0:03:00.3]} 10. O-O {[%clk 0:02:01.5]} 10... exd4 {[%clk 0:02:59.9]} 11. Nxf6+
{[%clk 0:02:00.6]} 11... Qxf6 {[%clk 0:03:00.1]} 12. Nxd4 {[%clk 0:02:00.5]}
12... Ne5 {[%clk 0:03:00.2]} 13. Be2 {[%clk 0:01:55.2]} 13... c5 {[%clk
0:02:56]} 14. Nf3 {[%clk 0:01:53]} 14... Ng6 {[%clk 0:02:49.9]} 15. Re1 {[%clk
0:01:19.1]} 15... Nf4 {[%clk 0:02:40.5]} 16. Bf1 {[%clk 0:01:19.3]} 16... Bg4
{[%clk 0:02:38.8]} 17. Re3 {[%clk 0:01:19]} 17... Rad8 {[%clk 0:02:29.1]} 18.
Qe1 {[%clk 0:01:14.9]} 18... Nd5 {[%clk 0:02:15.8]} 19. Re5 {[%clk 0:00:46.6]}
19... Bxf3 {[%clk 0:02:14.7]} 20. gxf3 {[%clk 0:00:46.5]} 20... b6 {[%clk
0:01:47.3]} 21. Rd1 {[%clk 0:00:41.6]} 21... Nc7 {[%clk 0:01:29.9]} 22. Rxd8
{[%clk 0:00:34.6]} 22... Rxd8 {[%clk 0:01:29.3]} 23. Re7 {[%clk 0:00:34.1]}
23... Ne6 {[%clk 0:01:22.7]} 24. Rxa7 {[%clk 0:00:31.9]} 24... h5 {[%clk
0:01:13.8]} 25. Bc4 {[%clk 0:00:27.5]} 25... Qxf3 {[%clk 0:01:09.6]} 26. Rxf7
{[%clk 0:00:17]} 26... Qg4+ {[%clk 0:00:55.2]} 27. Kh1 {[%clk 0:00:16.5]} 27...
Kxf7 {[%clk 0:00:52.3]} 28. Be2 {[%clk 0:00:11.2]} 28... Qe4+ {[%clk 0:00:45]}
29. Kg1 {[%clk 0:00:10.4]} 29... Qg6+ {[%clk 0:00:37.6]} 30. Kh1 {[%clk
0:00:10.3]} 30... Kf8 {[%clk 0:00:33.2]} 31. Bc4 {[%clk 0:00:08.4]} 31... Nf4
{[%clk 0:00:30.4]} 32. Bf1 {[%clk 0:00:04.7]} 32... Re8 {[%clk 0:00:20.4]} 33.
Qd2 {[%clk 0:00:04.2]} 33... Qe4+ {[%clk 0:00:20.1]} 34. Kg1 {[%clk 0:00:03.7]}
34... Re6 {[%clk 0:00:18.2]} 35. Qd8+ {[%clk 0:00:02.9]} 35... Kf7 {[%clk
0:00:18]} 36. Qd7+ {[%clk 0:00:03.5]} 36... Kg8 {[%clk 0:00:17.8]} 37. Qd8+
{[%clk 0:00:03.3]} 37... Kh7 {[%clk 0:00:17.8]} 38. f3 {[%clk 0:00:03.8]} 38...
Qe3+ {[%clk 0:00:16.4]} 39. Kh1 {[%clk 0:00:03.6]} 39... Rg6 {[%clk 0:00:16.4]}
40. Qh4 {[%clk 0:00:02.3]} 40... Qg1# {[%clk 0:00:16.2]} 0-1

[Event "Early-Titled-Tuesday-Blitz-March-19-2024"]
[Site "Chess.com"]
[Date "2024.03.19"]
[Round "10"]
[White "nihalsarin"]
[Black "HansOnTwitch"]
[Result "1-0"]
[WhiteElo "3174"]
[BlackElo "3081"]
[TimeControl "180+1"]
[EndTime "9:55:26 PDT"]
[Termination "nihalsarin won on time"]

1. a3 {[%clk 0:02:56.5]} 1... e5 {[%clk 0:02:55.2]} 2. c4 {[%clk 0:02:46]} 2...
c6 {[%clk 0:02:51.6]} 3. d4 {[%clk 0:02:37.6]} 3... e4 {[%clk 0:02:51.7]} 4. d5
{[%clk 0:02:35.1]} 4... Nf6 {[%clk 0:02:50.3]} 5. Nc3 {[%clk 0:02:34.6]} 5... d6
{[%clk 0:02:47.3]} 6. Bg5 {[%clk 0:02:33.1]} 6... h6 {[%clk 0:02:46.9]} 7. Bh4
{[%clk 0:02:32.3]} 7... e3 {[%clk 0:02:46.6]} 8. fxe3 {[%clk 0:02:28.1]} 8...
Be7 {[%clk 0:02:46.3]} 9. Nf3 {[%clk 0:02:27.7]} 9... O-O {[%clk 0:02:45.9]} 10.
e4 {[%clk 0:02:25.8]} 10... Na6 {[%clk 0:02:35.1]} 11. e5 {[%clk 0:02:08.9]}
11... Nxd5 {[%clk 0:02:13.3]} 12. cxd5 {[%clk 0:01:43.8]} 12... Bxh4+ {[%clk
0:02:12.6]} 13. Nxh4 {[%clk 0:01:44.7]} 13... Qxh4+ {[%clk 0:02:11.4]} 14. g3
{[%clk 0:01:45.6]} 14... Qe7 {[%clk 0:01:57.1]} 15. exd6 {[%clk 0:01:45.6]}
15... Qxd6 {[%clk 0:01:56.7]} 16. Bg2 {[%clk 0:01:46.4]} 16... cxd5 {[%clk
0:01:52.6]} 17. Qxd5 {[%clk 0:01:43.8]} 17... Qb6 {[%clk 0:01:43.8]} 18. Qb5
{[%clk 0:01:44.1]} 18... Nc5 {[%clk 0:01:12.9]} 19. Qxb6 {[%clk 0:01:31.1]}
19... axb6 {[%clk 0:01:13.8]} 20. Rd1 {[%clk 0:01:26.3]} 20... Be6 {[%clk
0:00:54.4]} 21. Rd6 {[%clk 0:01:25.8]} 21... Ra6 {[%clk 0:00:40.2]} 22. Kf2
{[%clk 0:01:25.4]} 22... Re8 {[%clk 0:00:21.5]} 23. Rc1 {[%clk 0:01:19.8]} 23...
Kf8 {[%clk 0:00:21]} 24. Nb5 {[%clk 0:01:15.9]} 24... Ke7 {[%clk 0:00:21.1]} 25.
b4 {[%clk 0:01:10.3]} 25... Bd7 {[%clk 0:00:11.1]} 26. bxc5 {[%clk 0:00:20.1]}
26... Bxb5 {[%clk 0:00:11.2]} 27. Rxb6 {[%clk 0:00:20.4]} 27... Rxb6 {[%clk
0:00:11.7]} 28. cxb6 {[%clk 0:00:21.3]} 28... Kd6 {[%clk 0:00:12.5]} 29. Bf3
{[%clk 0:00:16.9]} 29... Ba6 {[%clk 0:00:05.8]} 30. Rc7 {[%clk 0:00:14.8]} 30...
f6 {[%clk 0:00:01.9]} 31. Rxg7 {[%clk 0:00:14.6]} 31... Kc5 {[%clk 0:00:02.1]}
32. Rg6 {[%clk 0:00:13.2]} 32... Re6 {[%clk 0:00:02.2]} 33. Rxh6 {[%clk
0:00:13.7]} 33... Rxb6 {[%clk 0:00:02.6]} 34. g4 {[%clk 0:00:14.2]} 34... Rd6
{[%clk 0:00:01.8]} 35. h4 {[%clk 0:00:13.8]} 35... Bc4 {[%clk 0:00:01.9]} 36.
Bxb7 {[%clk 0:00:11.3]} 1-0

[Event "Early-Titled-Tuesday-Blitz-March-19-2024"]
[Site "Chess.com"]
[Date "2024.03.19"]
[Round "10"]
[White "SamCopeland"]
[Black "toninhojit"]
[Result "0-1"]
[WhiteElo "2365"]
[BlackElo "2484"]
[TimeControl "180+1"]
[EndTime "9:55:27 PDT"]
[Termination "toninhojit won by checkmate"]

1. e4 {[%clk 0:03:00.9]} 1... c5 {[%clk 0:02:53.4]} 2. Nf3 {[%clk 0:03:00.1]}
2... d6 {[%clk 0:02:53.1]} 3. d4 {[%clk 0:03:00.5]} 3... cxd4 {[%clk 0:02:54]}
4. Nxd4 {[%clk 0:03:00.8]} 4... Nf6 {[%clk 0:02:54.3]} 5. Nc3 {[%clk 0:03:00.4]}
5... g6 {[%clk 0:02:54.6]} 6. Be3 {[%clk 0:02:58.7]} 6... Bg7 {[%clk 0:02:55]}
7. f3 {[%clk 0:02:58.1]} 7... O-O {[%clk 0:02:55.5]} 8. Qd2 {[%clk 0:02:57.9]}
8... Nc6 {[%clk 0:02:55.9]} 9. g4 {[%clk 0:02:57.6]} 9... Bxg4 {[%clk 0:02:51]}
10. fxg4 {[%clk 0:02:56.2]} 10... Nxg4 {[%clk 0:02:51.9]} 11. Nb3 {[%clk
0:02:49.6]} 11... Nce5 {[%clk 0:02:47.3]} 12. O-O-O {[%clk 0:02:25.8]} 12... a5
{[%clk 0:02:47.4]} 13. a4 {[%clk 0:02:20.7]} 13... Rc8 {[%clk 0:02:47.2]} 14.
Be2 {[%clk 0:02:14.1]} 14... Nc4 {[%clk 0:02:16]} 15. Bxc4 {[%clk 0:02:11.5]}
15... Rxc4 {[%clk 0:02:16.9]} 16. Kb1 {[%clk 0:01:39.6]} 16... Bxc3 {[%clk
0:02:04.5]} 17. bxc3 {[%clk 0:01:37]} 17... Qc7 {[%clk 0:02:02.6]} 18. Bd4
{[%clk 0:01:30.5]} 18... e5 {[%clk 0:01:56.1]} 19. Be3 {[%clk 0:00:48.8]} 19...
Rxa4 {[%clk 0:01:55.6]} 20. Bg5 {[%clk 0:00:40.6]} 20... Rxe4 {[%clk 0:01:35.2]}
21. h3 {[%clk 0:00:38.1]} 21... a4 {[%clk 0:01:26.6]} 22. hxg4 {[%clk
0:00:27.4]} 22... axb3 {[%clk 0:01:26.8]} 23. Rxh7 {[%clk 0:00:18.2]} 23...
bxc2+ {[%clk 0:01:08.6]} 24. Kxc2 {[%clk 0:00:19.1]} 24... Qc4 {[%clk
0:00:59.2]} 25. Rh8+ {[%clk 0:00:16.4]} 25... Kxh8 {[%clk 0:00:59.7]} 26. Bf6+
{[%clk 0:00:15]} 26... Kg8 {[%clk 0:00:58.6]} 27. Rh1 {[%clk 0:00:14.3]} 27...
Qa2+ {[%clk 0:00:49.5]} 28. Kd3 {[%clk 0:00:12.5]} 28... Qc4+ {[%clk 0:00:26]}
29. Kc2 {[%clk 0:00:12.2]} 29... Qa4+ {[%clk 0:00:22.4]} 30. Kd3 {[%clk
0:00:11.7]} 30... Rd4+ {[%clk 0:00:09.9]} 31. cxd4 {[%clk 0:00:11.1]} 31...
Qxd4+ {[%clk 0:00:10.5]} 32. Ke2 {[%clk 0:00:10]} 32... Qe4+ {[%clk 0:00:10.8]}
33. Kf2 {[%clk 0:00:06.6]} 33... Qxh1 {[%clk 0:00:10.9]} 34. Qg5 {[%clk
0:00:04]} 34... Qh2+ {[%clk 0:00:10.1]} 35. Kf3 {[%clk 0:00:04]} 35... Rc8
{[%clk 0:00:07.9]} 36. Ke4 {[%clk 0:00:04.9]} 36... Qc2+ {[%clk 0:00:07.6]} 37.
Kd5 {[%clk 0:00:04.9]} 37... Qc6# {[%clk 0:00:07.9]} 0-1

[Event "Early-Titled-Tuesday-Blitz-March-19-2024"]
[Site "Chess.com"]
[Date "2024.03.19"]
[Round "10"]
[White "IngOscarArdila"]
[Black "martinmena"]
[Result "1-0"]
[WhiteElo "2409"]
[BlackElo "2264"]
[TimeControl "180+1"]
[EndTime "9:55:27 PDT"]
[Termination "IngOscarArdila won by resignation"]

1. d4 {[%clk 0:02:57.9]} 1... d5 {[%clk 0:02:59.2]} 2. c4 {[%clk 0:02:58]} 2...
e6 {[%clk 0:02:58.7]} 3. Nc3 {[%clk 0:02:58]} 3... Nf6 {[%clk 0:02:58.7]} 4. Bg5
{[%clk 0:02:58]} 4... Be7 {[%clk 0:02:58.2]} 5. Nf3 {[%clk 0:02:58.1]} 5... Nbd7
{[%clk 0:02:58.4]} 6. e3 {[%clk 0:02:58.2]} 6... O-O {[%clk 0:02:57.5]} 7. Qc2
{[%clk 0:02:58]} 7... Re8 {[%clk 0:02:53.7]} 8. Bd3 {[%clk 0:02:57.6]} 8... Nf8
{[%clk 0:02:53.8]} 9. Ne5 {[%clk 0:02:56.9]} 9... c6 {[%clk 0:02:47.4]} 10. O-O
{[%clk 0:02:55.4]} 10... h6 {[%clk 0:02:43.3]} 11. Bh4 {[%clk 0:02:55.1]} 11...
N6d7 {[%clk 0:02:39.1]} 12. Bxe7 {[%clk 0:02:53.2]} 12... Qxe7 {[%clk
0:02:39.7]} 13. f4 {[%clk 0:02:53.3]} 13... Nxe5 {[%clk 0:02:38.3]} 14. fxe5
{[%clk 0:02:53.2]} 14... Qg5 {[%clk 0:02:34.4]} 15. Rf4 {[%clk 0:02:51.2]} 15...
dxc4 {[%clk 0:02:29.5]} 16. Bxc4 {[%clk 0:02:48.6]} 16... b5 {[%clk 0:02:27.5]}
17. Bd3 {[%clk 0:02:44.1]} 17... Qe7 {[%clk 0:02:16.4]} 18. Raf1 {[%clk
0:02:41.3]} 18... Bb7 {[%clk 0:02:06.6]} 19. Rxf7 {[%clk 0:02:38.4]} 19... Qxf7
{[%clk 0:02:06.4]} 20. Rxf7 {[%clk 0:02:38.4]} 20... Kxf7 {[%clk 0:02:07.3]} 21.
Bg6+ {[%clk 0:02:38.5]} 21... Nxg6 {[%clk 0:02:05.9]} 22. Ne4 {[%clk 0:02:37.6]}
22... Red8 {[%clk 0:01:13.8]} 23. Qc5 {[%clk 0:02:32.4]} 23... Rd5 {[%clk
0:01:05.4]} 24. Qa3 {[%clk 0:02:23.6]} 24... Kg8 {[%clk 0:00:51]} 25. Nc5 {[%clk
0:02:12.8]} 25... Bc8 {[%clk 0:00:42.9]} 26. b4 {[%clk 0:02:10.6]} 26... a6
{[%clk 0:00:37.1]} 27. Ne4 {[%clk 0:02:04.5]} 27... Rd7 {[%clk 0:00:27.5]} 28.
Qc3 {[%clk 0:02:02.5]} 28... Bb7 {[%clk 0:00:17.6]} 29. Nc5 {[%clk 0:02:01.9]}
29... Rc7 {[%clk 0:00:17.8]} 30. Nxe6 {[%clk 0:02:01.3]} 30... Re7 {[%clk
0:00:16.9]} 31. Qb3 {[%clk 0:01:58.5]} 31... Kh7 {[%clk 0:00:15]} 32. Nc5 {[%clk
0:01:54.3]} 32... Rc8 {[%clk 0:00:13.8]} 33. Qc2 {[%clk 0:01:51.5]} 33... Rf8
{[%clk 0:00:06.5]} 34. h4 {[%clk 0:01:50.5]} 34... h5 {[%clk 0:00:04.7]} 35. Qe2
{[%clk 0:01:47.3]} 35... Kh6 {[%clk 0:00:03.5]} 36. g3 {[%clk 0:01:40.5]} 36...
Ref7 {[%clk 0:00:03.5]} 37. a3 {[%clk 0:01:33.8]} 37... Rf1+ {[%clk 0:00:02.9]}
38. Qxf1 {[%clk 0:01:34]} 38... Rxf1+ {[%clk 0:00:03.1]} 39. Kxf1 {[%clk
0:01:34.9]} 39... Bc8 {[%clk 0:00:02.1]} 40. Ke2 {[%clk 0:01:33.7]} 40... Ne7
{[%clk 0:00:02]} 41. Kd3 {[%clk 0:01:30.5]} 41... g5 {[%clk 0:00:01.9]} 42. e4
{[%clk 0:01:25.2]} 42... Kg6 {[%clk 0:00:02]} 43. Ke3 {[%clk 0:01:22.9]} 43...
gxh4 {[%clk 0:00:02.4]} 44. gxh4 {[%clk 0:01:23.1]} 44... Ng8 {[%clk 0:00:02.3]}
45. d5 {[%clk 0:01:22.3]} 45... cxd5 {[%clk 0:00:01.9]} 46. exd5 {[%clk
0:01:22.6]} 46... Kf5 {[%clk 0:00:02.3]} 47. e6 {[%clk 0:01:21.8]} 47... Kf6
{[%clk 0:00:01.5]} 48. Kd4 {[%clk 0:01:21.6]} 48... Ke7 {[%clk 0:00:01.2]} 49.
Ke5 {[%clk 0:01:21]} 49... Nh6 {[%clk 0:00:01.6]} 50. d6+ {[%clk 0:01:21.2]}
50... Kd8 {[%clk 0:00:01.8]} 51. d7 {[%clk 0:01:06.5]} 51... Bxd7 {[%clk
0:00:02.2]} 52. exd7 {[%clk 0:01:04.5]} 52... Ng4+ {[%clk 0:00:02.3]} 53. Kd6
{[%clk 0:01:03.1]} 1-0

[Event "Early-Titled-Tuesday-Blitz-March-19-2024"]
[Site "Chess.com"]
[Date "2024.03.19"]
[Round "10"]
[White "Kotlyar_K"]
[Black "Kotofeyca"]
[Result "0-1"]
[WhiteElo "2606"]
[BlackElo "2471"]
[TimeControl "180+1"]
[EndTime "9:55:28 PDT"]
[Termination "Kotofeyca won by checkmate"]

1. e4 {[%clk 0:03:00.7]} 1... c5 {[%clk 0:02:59.9]} 2. Nf3 {[%clk 0:02:59.1]}
2... d6 {[%clk 0:03:00.5]} 3. d4 {[%clk 0:02:59.7]} 3... cxd4 {[%clk 0:03:01.4]}
4. Nxd4 {[%clk 0:03:00.2]} 4... Nf6 {[%clk 0:03:02.1]} 5. Nc3 {[%clk 0:03:00.8]}
5... a6 {[%clk 0:03:02.7]} 6. h4 {[%clk 0:03:01]} 6... e5 {[%clk 0:02:57.4]} 7.
Nb3 {[%clk 0:02:59.5]} 7... Be6 {[%clk 0:02:52.8]} 8. Bg5 {[%clk 0:02:56.8]}
8... Be7 {[%clk 0:02:52.7]} 9. Bxf6 {[%clk 0:02:40.8]} 9... Bxf6 {[%clk
0:02:52.3]} 10. g3 {[%clk 0:02:41.5]} 10... O-O {[%clk 0:02:39.9]} 11. Qd2
{[%clk 0:02:39.1]} 11... Qc7 {[%clk 0:02:39.3]} 12. O-O-O {[%clk 0:02:35.8]}
12... Be7 {[%clk 0:02:32.2]} 13. Bh3 {[%clk 0:02:24.4]} 13... Nd7 {[%clk
0:02:26]} 14. f4 {[%clk 0:02:14.4]} 14... b5 {[%clk 0:02:15.5]} 15. f5 {[%clk
0:01:32.3]} 15... Bc4 {[%clk 0:02:13.2]} 16. Nd5 {[%clk 0:01:32.5]} 16... Bxd5
{[%clk 0:02:12]} 17. Qxd5 {[%clk 0:01:32.3]} 17... Nb6 {[%clk 0:02:06.2]} 18.
Qd3 {[%clk 0:01:31.6]} 18... Rfd8 {[%clk 0:01:55.1]} 19. g4 {[%clk 0:01:31.1]}
19... d5 {[%clk 0:01:54.2]} 20. exd5 {[%clk 0:01:29]} 20... Rxd5 {[%clk
0:01:48.5]} 21. Qe4 {[%clk 0:01:24.8]} 21... Rxd1+ {[%clk 0:01:31.9]} 22. Rxd1
{[%clk 0:01:24.4]} 22... Bxh4 {[%clk 0:01:29.9]} 23. Bf1 {[%clk 0:00:54]} 23...
h6 {[%clk 0:01:22.4]} 24. Bd3 {[%clk 0:00:52.6]} 24... Bf6 {[%clk 0:01:18.5]}
25. Be2 {[%clk 0:00:44.6]} 25... Rc8 {[%clk 0:01:16.1]} 26. Kb1 {[%clk
0:00:43.2]} 26... Nc4 {[%clk 0:01:11.6]} 27. Nd2 {[%clk 0:00:31.3]} 27... Nd6
{[%clk 0:01:02.4]} 28. Qd3 {[%clk 0:00:31.1]} 28... Rd8 {[%clk 0:00:49.7]} 29.
Ne4 {[%clk 0:00:29.6]} 29... Nxe4 {[%clk 0:00:40.5]} 30. Qxe4 {[%clk 0:00:29.5]}
30... Rxd1+ {[%clk 0:00:40.1]} 31. Bxd1 {[%clk 0:00:30.4]} 31... Qd6 {[%clk
0:00:27.8]} 32. Bf3 {[%clk 0:00:29.4]} 32... Qd2 {[%clk 0:00:22.5]} 33. a3
{[%clk 0:00:24.6]} 33... Qd4 {[%clk 0:00:19.7]} 34. Qa8+ {[%clk 0:00:23.9]}
34... Kh7 {[%clk 0:00:19.1]} 35. Qxa6 {[%clk 0:00:20.6]} 35... e4 {[%clk
0:00:18]} 36. Qxb5 {[%clk 0:00:17.3]} 36... exf3 {[%clk 0:00:17.4]} 37. a4
{[%clk 0:00:17.7]} 37... f2 {[%clk 0:00:17.4]} 38. Ka2 {[%clk 0:00:17.8]} 38...
Qd1 {[%clk 0:00:15.1]} 39. Qe8 {[%clk 0:00:16.6]} 39... f1=Q {[%clk 0:00:14.7]}
40. Qxf7 {[%clk 0:00:17.5]} 40... Qd8 {[%clk 0:00:11.5]} 41. b3 {[%clk
0:00:14.7]} 41... Qa1# {[%clk 0:00:10.5]} 0-1

[Event "Early-Titled-Tuesday-Blitz-March-19-2024"]
[Site "Chess.com"]
[Date "2024.03.19"]
[Round "10"]
[White "moro182"]
[Black "jefferyx"]
[Result "1-0"]
[WhiteElo "2891"]
[BlackElo "3090"]
[TimeControl "180+1"]
[EndTime "9:55:31 PDT"]
[Termination "moro182 won by resignation"]

1. d4 {[%clk 0:03:00.9]} 1... Nf6 {[%clk 0:03:00.1]} 2. Bf4 {[%clk 0:03:01.3]}
2... c5 {[%clk 0:02:57.5]} 3. e3 {[%clk 0:03:01.4]} 3... Qb6 {[%clk 0:02:57.4]}
4. Na3 {[%clk 0:02:48.3]} 4... d5 {[%clk 0:02:50]} 5. Nb5 {[%clk 0:02:41.3]}
5... Na6 {[%clk 0:02:50.2]} 6. a4 {[%clk 0:02:36.9]} 6... Bd7 {[%clk 0:02:50.3]}
7. b3 {[%clk 0:02:35.5]} 7... e6 {[%clk 0:02:39.1]} 8. Nf3 {[%clk 0:02:33.6]}
8... Be7 {[%clk 0:02:39.2]} 9. Be2 {[%clk 0:02:28]} 9... O-O {[%clk 0:02:39.2]}
10. O-O {[%clk 0:02:22.6]} 10... Ne4 {[%clk 0:02:39.6]} 11. Ne5 {[%clk 0:02:06]}
11... Bxb5 {[%clk 0:02:38.6]} 12. axb5 {[%clk 0:02:06.8]} 12... Nb8 {[%clk
0:02:34.9]} 13. c4 {[%clk 0:01:56.2]} 13... Nc3 {[%clk 0:02:25.8]} 14. dxc5
{[%clk 0:01:46.9]} 14... Bxc5 {[%clk 0:02:15.8]} 15. Qc2 {[%clk 0:01:43.3]}
15... Nxe2+ {[%clk 0:02:14]} 16. Qxe2 {[%clk 0:01:44.2]} 16... f6 {[%clk
0:02:14.6]} 17. Nd3 {[%clk 0:01:36]} 17... dxc4 {[%clk 0:02:14.9]} 18. bxc4
{[%clk 0:01:15.4]} 18... e5 {[%clk 0:02:15]} 19. Bg3 {[%clk 0:01:15.1]} 19...
Nd7 {[%clk 0:02:15.3]} 20. Rfd1 {[%clk 0:01:13.6]} 20... a5 {[%clk 0:02:13.7]}
21. Qf3 {[%clk 0:00:55.8]} 21... a4 {[%clk 0:01:53.4]} 22. Nb2 {[%clk
0:00:31.7]} 22... a3 {[%clk 0:01:52.5]} 23. Na4 {[%clk 0:00:31.9]} 23... Rxa4
{[%clk 0:01:46.1]} 24. Rxd7 {[%clk 0:00:32]} 24... Qe6 {[%clk 0:01:32.6]} 25.
Qxb7 {[%clk 0:00:31.5]} 25... Rf7 {[%clk 0:01:33.2]} 26. Rxf7 {[%clk 0:00:23.7]}
26... Qxf7 {[%clk 0:01:34.1]} 27. Qc8+ {[%clk 0:00:24]} 27... Bf8 {[%clk
0:01:34.7]} 28. b6 {[%clk 0:00:24]} 28... Rb4 {[%clk 0:01:26.5]} 29. f4 {[%clk
0:00:23.2]} 29... Qxc4 {[%clk 0:01:04]} 30. Qxc4+ {[%clk 0:00:21.2]} 30... Rxc4
{[%clk 0:01:04.1]} 31. fxe5 {[%clk 0:00:21.7]} 31... Rb4 {[%clk 0:00:44.7]} 32.
exf6 {[%clk 0:00:21.6]} 32... Rxb6 {[%clk 0:00:45.1]} 33. fxg7 {[%clk
0:00:20.9]} 33... Kxg7 {[%clk 0:00:43.9]} 34. Be5+ {[%clk 0:00:20.1]} 34... Kf7
{[%clk 0:00:44.4]} 35. Kf2 {[%clk 0:00:19.5]} 35... Ke6 {[%clk 0:00:44.3]} 36.
Bd4 {[%clk 0:00:19.4]} 36... Rb3 {[%clk 0:00:44.6]} 37. Kf3 {[%clk 0:00:19.6]}
37... Kd5 {[%clk 0:00:45.2]} 38. Rc1 {[%clk 0:00:17.9]} 38... a2 {[%clk
0:00:44.5]} 39. Rc8 {[%clk 0:00:17.9]} 39... Ba3 {[%clk 0:00:38]} 40. Ra8 {[%clk
0:00:17.2]} 40... Kc4 {[%clk 0:00:32.4]} 41. Ke4 {[%clk 0:00:14.4]} 41... h5
{[%clk 0:00:29.2]} 42. g3 {[%clk 0:00:13.8]} 42... Kb4 {[%clk 0:00:19]} 43. h3
{[%clk 0:00:12.1]} 43... Rb1 {[%clk 0:00:19]} 44. g4 {[%clk 0:00:08.6]} 44...
hxg4 {[%clk 0:00:19.9]} 45. hxg4 {[%clk 0:00:09.3]} 45... Rd1 {[%clk 0:00:19.6]}
46. Be5 {[%clk 0:00:09.5]} 46... Rg1 {[%clk 0:00:17.2]} 47. Bd6+ {[%clk
0:00:08.9]} 1-0